Cogmind - Beta 16.1 @@@ ROGUE MODE // 2026.03.02 @ 00:16:06 Player: Megaknight51 Result: Self-destructed Performance ------------- Evolutions (4) 2000 Regions Visited (9) 1800 Robots Destroyed (95) 475 Value Destroyed (1966) 1966 Prototype IDs (3) 60 Alien Tech Used (0) 0 Bonus (113) 113 TOTAL SCORE: 6414 Bonus ------- Follower Combat Kills 113 Cogmind --------- Core Integrity 762/850 Matter 160/300 Energy 300/300 System Corruption 0% Temperature Cool (0) Movement Flying (275) Ox3 Location -6/Factory Parts ------- > --- POWER (1) -------- Angular Momentum Engine > --- PROPULSION (4) --- Cesium-ion Thruster > --- UTILITY (8) ------ Structural Scanner Trap Scanner Machine Analyzer Advanced Sensor Array Improved Signal Interpreter System Shield Authchip [Device] > --- WEAPON (2) ------- Makeshift Hammer > --- INVENTORY (5) ---- Angular Momentum Engine Advanced Visual Processing Unit Improved Sensor Array Stasis Canceller System Shield Peak State ------------ > --- POWER ------------ Angular Momentum Engine > --- PROPULSION ------- Cesium-ion Thruster Cesium-ion Thruster Cesium-ion Thruster Cesium-ion Thruster > --- UTILITY ---------- Structural Scanner Trap Scanner Machine Analyzer Advanced Sensor Array Improved Signal Interpreter Hacking Suite Hacking Suite Authchip [Device] > --- WEAPON ----------- Makeshift Hammer > --- INVENTORY -------- Nuclear Core Improved Sensor Array Stasis Canceller System Shield System Shield [Rating: 47] Favorites ----------- Power Light Nuclear Core Engine Ion Engine Power Core Light Nuclear Core Propulsion Wheel Treads Light Treads Wheel Wheel Flight Unit Cesium-ion Thruster Utility Large Storage Unit Device Seismic Detector Storage Large Storage Unit Processor Improved Signal Interpreter Hackware Authchip [Device] Protection Light Armor Plating Weapon Light EM Pulse Cannon Energy Gun Spread Laser Energy Cannon Light EM Pulse Cannon Ballistic Gun Light Assault Rifle Ballistic Cannon Improved Light Cannon Special Weapon Mining Laser Impact Weapon Makeshift Hammer Build | -11 -10 -10 -10 -9 -8 -8 -8 -8 -6 ------- Run | Yrd Mat Min Exi Min Mat Sto Rec Scr Fac Slots Evolved 8 | . . . . . 4 . . . 4 Power . | . . . . . . . . . . Propulsion 2 | . . . . . 2 . . . . Utility 6 | . . . . . 2 . . . 4 Weapon . | . . . . . . . . . . Parts Attached 71 | 7 6 3 . 8 16 15 2 . 14 Power 9 | 1 1 . . 2 2 1 . . 2 Engine 4 | 1 . . . 2 . . . . 1 Core 5 | . 1 . . . 2 1 . . 1 Reactor . | . . . . . . . . . . Propulsion 22 | 2 1 2 . 2 5 6 . . 4 Treads 5 | . . . . . 1 4 . . . Leg . | . . . . . . . . . . Wheel 13 | 2 1 2 . 2 4 2 . . . Hover . | . . . . . . . . . . Flight 4 | . . . . . . . . . 4 Utility 24 | 2 2 1 . 1 6 2 2 . 8 Device 8 | 1 1 1 . 1 1 . . . 3 Storage 2 | 1 1 . . . . . . . . Processor 2 | . . . . . . . . . 2 Hackware 4 | . . . . . . . 1 . 3 Protection 8 | . . . . . 5 2 1 . . Artifact . | . . . . . . . . . . Weapon 16 | 2 2 . . 3 3 6 . . . Energy Gun 3 | . . . . 1 1 1 . . . Energy Cannon 3 | . . . . . . 3 . . . Ballistic Gun 5 | 2 1 . . . 1 1 . . . Ballistic Cannon 3 | . . . . 2 1 . . . . Launcher . | . . . . . . . . . . Special Weapon 1 | . 1 . . . . . . . . Impact Weapon 1 | . . . . . . 1 . . . Slashing Weapon . | . . . . . . . . . . Piercing Weapon . | . . . . . . . . . . Special Melee Weapon . | . . . . . . . . . . Unidentified Prototypes 1 | . . . . . . 1 . . . Corrupted Parts 2 | . . . . . . 1 1 . . System Corruption 6 | . . . . . . 4 2 . . Parts Lost 27 | . 1 3 . 2 8 6 2 . 5 Power . | . . . . . . . . . . Propulsion 11 | . . 1 . 1 3 2 1 . 3 Utility 11 | . 1 2 . . 3 2 1 . 2 Weapon 5 | . . . . 1 2 2 . . . Highest Loss Streak 4 | . 1 2 . 2 4 4 2 . 4 To Critical Strikes . | . . . . . . . . . . Average Backups 12 | 3 6 10 14 14 14 15 15 15 5 Power 1 | 1 2 3 3 2 1 1 1 1 1 Propulsion 3 | 1 2 2 3 2 3 4 4 4 . Utility 5 | . . 2 5 6 6 6 8 9 4 Weapon 2 | . 1 2 3 3 3 3 1 1 . Tool/Special . | . . . . . . . . . . Unused Backups 15 | . . . . 2 6 1 2 . 4 Power 3 | . . . . . 2 . . . 1 Propulsion . | . . . . . . . . . . Utility 8 | . . . . 2 3 . . . 3 Weapon 4 | . . . . . 1 1 2 . . Tool/Special . | . . . . . . . . . . Average Slot Usage (%) 89 | . 99 89 85 92 97 77 86 90 87 Engine 3 | . 12 . . 11 2 . . . 4 Core 7 | . 1 14 14 2 6 9 9 9 1 Treads 6 | . . . . . 1 16 18 18 1 Wheel 21 | . 28 28 28 22 33 12 13 9 . Device 5 | . 13 3 . 13 10 . . . 17 Storage 11 | . 14 14 14 14 9 9 9 9 . Hackware 1 | . . . . . . . . 9 17 Protection 7 | . . . . . 14 13 18 18 1 Energy Gun 1 | . . . . 8 1 2 . . . Energy Cannon 4 | . . . . . . 4 18 18 1 Ballistic Gun 11 | . 23 28 28 3 . 9 . . . Ballistic Cannon 3 | . . . . 16 15 . . . . Peak Build Rating 47 | 7 10 10 9 12 19 25 21 21 47 Average Rating 14 | 6 7 9 9 11 17 19 17 21 43 On Entrance 12 | . 7 10 9 9 12 19 18 21 21 Avg Prop Armor Cover (%) 11 | . . . . . 6 11 12 12 12 Naked Turns . | . . . . . . . . . . Heaviest Build 54 | 14 29 29 28 36 48 54 39 39 39 Greatest Support 46 | 20 20 26 26 32 46 26 26 10 24 Greatest Overweight (x) 4 | . 1 2 1 2 4 4 3 3 3 Average Overweight (x) 1 | . . 1 1 1 . 2 1 3 . Largest Inventory Capacity 15 | 8 15 15 15 15 15 15 15 15 15 Average Capacity 13 | 7 8 15 15 15 15 15 15 15 5 Most Carried 15 | 5 9 14 14 15 15 15 15 15 15 Average Carried 12 | 3 6 10 14 14 14 14 14 15 5 Final Capacity 15 | 8 15 15 15 15 15 15 15 15 5 Final Carried 15 | 5 9 14 14 15 15 15 15 15 5 Class Distribution -------------------- 53% | Mutant 40% | Scavenger-Mutant 3% | Hacker-Scout Dominant Class ---------------- Mutant | -10/Materials Mutant | -10/Mines Mutant | -10/Exiles Mutant | -9/Mines Scavenger-Mutant | -8/Materials Scavenger-Mutant | -8/Storage Scavenger-Mutant | -8/Recycling Scavenger-Mutant | -8/Scraptown Hacker-Scout | -6/Factory Resources | -11 -10 -10 -10 -9 -8 -8 -8 -8 -6 ----------- Run | Yrd Mat Min Exi Min Mat Sto Rec Scr Fac Matter Collected 2015 | 390 341 164 . 180 533 332 75 . . Remotely . | . . . . . . . . . . Salvage Created 3197 | 283 602 339 . 337 450 1002 184 . . Parts 233 | 28 47 29 . 29 37 56 7 . . Haulers Intercepted 4 | . . . . . 2 2 . . . Recyclers Shooed 5 | 1 1 . . 2 . . 1 . . Parts Field Recycled . | . . . . . . . . . . Retrieved Matter . | . . . . . . . . . . Parts Self-Destructed . | . . . . . . . . . . Prevented . | . . . . . . . . . . Parts Restored . | . . . . . . . . . . Kills | -11 -10 -10 -10 -9 -8 -8 -8 -8 -6 ------- Run | Yrd Mat Min Exi Min Mat Sto Rec Scr Fac Combat Hostiles Destroyed 45 | . 9 4 . 4 11 15 2 . . Guns 26 | . 9 4 . 2 2 9 . . . Cannons 17 | . . . . 2 9 5 1 . . Classes Destroyed 12 | 3 4 . . 2 3 . . . . Worker 9 | 2 3 1 . 1 1 1 . . . Builder 12 | . 2 4 . 2 1 3 . . . Tunneler 14 | 8 2 3 . 1 . . . . . Hauler 4 | . . . . . 2 2 . . . Recycler 6 | 1 . . . 2 2 . 1 . . Mechanic 3 | . 1 . . . 1 1 . . . Operator 2 | . 1 . . . . 1 . . . Swarmer 9 | . . . . . 6 3 . . . Grunt 24 | . 9 4 . 1 1 9 . . . Duelist 1 | . . . . 1 . . . . . Sentry 10 | . . . . 2 3 3 2 . . Hunter 1 | . . . . . 1 . . . . Best Kill Streak 5 | 4 3 3 . 3 5 4 1 . . Combat Bots Only 4 | . 2 2 . 2 4 4 1 . . Max Kills in Single Turn 2 | 1 1 1 . 1 2 1 1 . . Gunslinging . | . . . . . . . . . . Exploded . | . . . . . . . . . . Melee . | . . . . . . . . . . Uniques/NPCs Destroyed . | . . . . . . . . . . Combat | -11 -10 -10 -10 -9 -8 -8 -8 -8 -6 -------- Run | Yrd Mat Min Exi Min Mat Sto Rec Scr Fac Hostile Shots Fired 344 | . 49 20 . 12 124 76 10 . 53 Missed 106 | . 18 5 . 4 31 18 . . 30 Hits 238 | . 31 15 . 8 93 58 10 . 23 Projectile 238 | . 31 15 . 8 93 58 10 . 23 AOE 5 | . . . . 4 . . . . 1 Critical Strikes 9 | . . . . . 5 3 1 . . Damage Taken 3682 | . 382 202 . 483 1286 924 157 . 248 Core 473 | . 106 26 . 52 172 29 . . 88 Absorbed by Shields . | . . . . . . . . . . Core Remaining (%) 63 | 100 . . . 26 . . . 63 . Volleys Fired 282 | 30 65 39 . 24 55 62 7 . . Largest 2 | 2 2 2 . 2 2 2 2 . . Hottest 112 | 40 100 40 . 98 95 112 112 . . Shots Fired 543 | 60 119 78 . 48 105 119 14 . . Gun 372 | 60 108 78 . 21 10 95 . . . Cannon 160 | . . . . 27 95 24 14 . . Launcher . | . . . . . . . . . . Special 11 | . 11 . . . . . . . . Kinetic 441 | 60 108 78 . 29 95 71 . . . Thermal 64 | . 11 . . 19 10 24 . . . Explosive . | . . . . . . . . . . Electromagnetic 38 | . . . . . . 24 14 . . Robot Hit Streak 17 | 7 11 7 . 9 8 17 11 . . Robot Miss Streak 6 | 3 2 3 . 5 6 3 1 . . Penetration Max . | . . . . . . . . . . Secondary Targets 1 | . . . . . . 1 . . . Max Gunslinging Chain 1 | . . . . . . 1 . . . Shots Hit Robots 342 | 36 73 51 . 32 56 83 11 . . Core Hits 183 | 17 37 22 . 38 24 41 4 . . Critical Kills 1 | . . 1 . . . . . . . Critical Parts Destroyed 1 | . . . . . . 1 . . . Critical Strikes 9 | . . 1 . . 4 4 . . . Burn 3 | . . . . . . 3 . . . Destroy 1 | . . 1 . . . . . . . Blast 4 | . . . . . 4 . . . . Smash 1 | . . . . . . 1 . . . Melee Attacks 10 | . . . . . . 4 . . 6 Impact 10 | . . . . . . 4 . . 6 Slashing . | . . . . . . . . . . Piercing . | . . . . . . . . . . Sneak Attacks 1 | . . . . . . 1 . . . Combat Hostiles . | . . . . . . . . . . Follow-up Attacks . | . . . . . . . . . . Damage Inflicted 5210 | 412 744 549 . 532 1045 1708 220 . . Guns 2934 | 412 744 549 . 260 99 870 . . . Cannons 1825 | . . . . 272 925 408 220 . . Explosions 54 | . . . . . . 54 . . . Melee 376 | . . . . . . 376 . . . Ramming 21 | . . . . . 21 . . . . Kinetic 3415 | 412 744 549 . 295 925 490 . . . Thermal 770 | . . . . 237 99 434 . . . Explosive . | . . . . . . . . . . Electromagnetic 628 | . . . . . . 408 220 . . Impact 376 | . . . . . . 376 . . . Slashing . | . . . . . . . . . . Piercing . | . . . . . . . . . . Highest Corruption 7 | . . . . . 1 5 7 . . Average Corruption 3 | . . . . . 1 1 5 . . Corruption Purged . | . . . . . . . . . . Corruption Blocked . | . . . . . . . . . . Effects 37 | . . . . . . 5 32 . . Message Errors 9 | . . . . . . . 9 . . Matter Fused 11 | . . . . . . 2 9 . . Heat Flow Errors 4 | . . . . . . . 4 . . Energy Discharges 3 | . . . . . . 1 2 . . Parts Rejected 1 | . . . . . . 1 . . . Data Loss (minor) 5 | . . . . . . 1 4 . . Data Loss (major) 2 | . . . . . . . 2 . . Alerts 2 | . . . . . . . 2 . . Overload Shots . | . . . . . . . . . . Overflow Damage 267 | . . . . 11 . 256 . . . Projectiles 11 | . . . . 11 . . . . . Explosions . | . . . . . . . . . . Melee 256 | . . . . . . 256 . . . Knockbacks 9 | . . . . 4 5 . . . . Impact . | . . . . . . . . . . Kinetic 9 | . . . . 4 5 . . . . Secondary . | . . . . . . . . . . Self-Inflicted Damage 9 | . . . . . 9 . . . . Shots . | . . . . . . . . . . Rammed 6 | . . . . . 6 . . . . Targets Rammed 6 | . . . . . 6 . . . . Kicked . | . . . . . . . . . . Crushed . | . . . . . . . . . . Highest Temperature 421 | . 20 14 . 174 421 333 216 . 3 Average Temperature 91 | . 9 4 . 59 173 101 80 . 3 Received Heat Transfer 1524 | . 219 114 . 27 558 513 63 . 30 Effects 11 | . . . . . 11 . . . . Shutdowns 1 | . . . . . 1 . . . . Energy Bleed 4 | . . . . . 4 . . . . Interference 3 | . . . . . 3 . . . . Short Circuit 1 | . . . . . 1 . . . . Damage (minor) 2 | . . . . . 2 . . . . Siege Activations . | . . . . . . . . . . Martial Activations . | . . . . . . . . . . Shielding Activations . | . . . . . . . . . . Robots Disrupted . | . . . . . . . . . . Combat Hostiles . | . . . . . . . . . . Robots Corrupted 2 | . . . . . . 1 1 . . Combat Hostiles 2 | . . . . . . 1 1 . . Parts Fried 7 | . . . . . . 5 2 . . Impact Corruptions 9 | . . . . . . 9 . . . Robots Melted . | . . . . . . . . . . Combat Hostiles . | . . . . . . . . . . Parts Melted 6 | . . . . 1 2 3 . . . Heat Transferred 1544 | . . . . 310 259 975 . . . Parts Sabotaged . | . . . . . . . . . . Parts Stolen . | . . . . . . . . . . Parts Stripped . | . . . . . . . . . . Power Chain Reactions 1 | . . . . . . 1 . . . Alert | -11 -10 -10 -10 -9 -8 -8 -8 -8 -6 ------- Run | Yrd Mat Min Exi Min Mat Sto Rec Scr Fac Maximum Alert Level 1 | . . . . . . 1 . . . Low Security (%) 99 | 100 100 100 . 100 100 95 100 . 100 Level 1 . | . . . . . . 4 . . . Level 2 . | . . . . . . . . . . Level 3 . | . . . . . . . . . . Level 4 . | . . . . . . . . . . Level 5 . | . . . . . . . . . . High Security . | . . . . . . . . . . Max Security . | . . . . . . . . . . Peak Influence 215 | 10 165 52 . 63 165 215 146 . 40 Initial 77 | . . 52 . . 7 38 77 . . Average 42 | 2 36 9 . 25 95 89 39 . 7 Influence Increases 2072 | 55 335 148 . 224 476 529 209 . 96 Destroy 0b10 Robot/C 1000 | . 180 80 . 140 260 300 40 . . Destroy 0b10 Robot/NC 265 | 55 45 40 . 30 35 55 5 . . Destroy Leader 218 | . 40 20 . 30 64 64 . . . Allied During Kill 47 | . . 8 . 22 17 . . . . Successful Hack 21 | . . . . . 7 . 14 . . Select Force Hacks 180 | . . . . . . 30 150 . . Disable Machine 30 | . . . . . 15 15 . . . Destroy Structure 26 | . 10 . . 2 3 5 . . 6 Partial Spotted 30 | . . . . . . . . . 30 Lose Combat Pursuer 255 | . 60 . . . 75 60 . . 60 Influence Decreases 2072 | 55 200 283 . 204 404 422 408 . 96 Entered New Map 272 | . . 83 . . 13 54 122 . . Time Decay 1533 | 55 200 170 . 204 271 308 279 . 46 Lost Part 227 | . . 30 . . 80 60 7 . 50 Lost Ally 40 | . . . . . 40 . . . . Squads Dispatched 11 | . 2 . . . 3 2 . . 4 Investigation 4 | . 1 . . . 1 1 . . 1 Extermination 1 | . . . . . . . . . 1 Reinforcement 6 | . 1 . . . 2 1 . . 2 Assault . | . . . . . . . . . . Garrison . | . . . . . . . . . . Intercept . | . . . . . . . . . . Searches Triggered . | . . . . . . . . . . Construction Impeded . | . . . . . . . . . . Haulers Reinforced . | . . . . . . . . . . Active Scanning Responses . | . . . . . . . . . . Cargo Convoy Interrupts . | . . . . . . . . . . Stealth | -11 -10 -10 -10 -9 -8 -8 -8 -8 -6 --------- Run | Yrd Mat Min Exi Min Mat Sto Rec Scr Fac Distress Signals 5 | . 3 . . . 1 1 . . . Communications Jammed . | . . . . . . . . . . Distress Signals . | . . . . . . . . . . Times Spotted 98 | . 24 4 . 9 31 19 2 . 9 Peak Tracking Total 10 | . 4 2 . 2 10 5 1 . 6 Tactical Retreats 14 | . 3 . . . 4 4 . . 3 Traps | -11 -10 -10 -10 -9 -8 -8 -8 -8 -6 ------- Run | Yrd Mat Min Exi Min Mat Sto Rec Scr Fac Traps Triggered 3 | . 1 . . . 1 1 . . . Indirectly . | . . . . . . . . . . Trap Hack Attempts . | . . . . . . . . . . Triggered . | . . . . . . . . . . Disarmed . | . . . . . . . . . . Reprogrammed . | . . . . . . . . . . Reused . | . . . . . . . . . . Traps Extracted . | . . . . . . . . . . Installed . | . . . . . . . . . . Triggered . | . . . . . . . . . . Machines | -11 -10 -10 -10 -9 -8 -8 -8 -8 -6 ---------- Run | Yrd Mat Min Exi Min Mat Sto Rec Scr Fac Machines Disabled 2 | . . . . . 1 1 . . . Max in Single Turn 1 | . . . . . 1 1 . . . Machines Repaired . | . . . . . . . . . . Machines Dismantled . | . . . . . . . . . . Machines Sabotaged . | . . . . . . . . . . Overloaded Fab Kills . | . . . . . . . . . . Hacking | -11 -10 -10 -10 -9 -8 -8 -8 -8 -6 --------- Run | Yrd Mat Min Exi Min Mat Sto Rec Scr Fac Machines Accessed 18 | . . . . . 2 2 9 . 5 Terminals 10 | . . . . . 1 1 4 . 4 Fabricators 1 | . . . . . . . . . 1 Repair Stations . | . . . . . . . . . . Recycling Units 6 | . . . . . . 1 5 . . Scanalyzers 1 | . . . . . 1 . . . . Garrison Access . | . . . . . . . . . . Total Hacks 33 | . . . . . 7 3 15 . 8 Successful 17 | . . . . . 6 1 9 . 1 Failed 16 | . . . . . 1 2 6 . 7 Catastrophic 5 | . . . . . . 1 1 . 3 Database Lockouts . | . . . . . . . . . . Manual 24 | . . . . . 2 2 13 . 7 Terminals 20 | . . . . . 2 2 9 . 7 Fabricators 1 | . . . . . . . . . 1 Repair Stations . | . . . . . . . . . . Recycling Units 7 | . . . . . . 1 6 . . Scanalyzers 5 | . . . . . 5 . . . . Garrison Access . | . . . . . . . . . . Terminal Hacks 2 | . . . . . . . 2 . . Prototype ID Bank 1 | . . . . . . . 1 . . Recycling Unit Index 1 | . . . . . . . 1 . . Fabricator Hacks 1 | . . . . . . . . . 1 Network Status 1 | . . . . . . . . . 1 Repair Station Hacks . | . . . . . . . . . . Recycling Unit Hacks . | . . . . . . . . . . Scanalyzer 5 | . . . . . 5 . . . . Retrieve Study 5 | . . . . . 5 . . . . Garrison Access Hacks . | . . . . . . . . . . Unauthorized Hacks 9 | . . . . . 1 1 7 . . Terminals 3 | . . . . . 1 . 2 . . Botnet 3 | . . . . . 1 . 2 . . Fabricators . | . . . . . . . . . . Repair Stations . | . . . . . . . . . . Recycling Units 6 | . . . . . . 1 5 . . Tunnel 6 | . . . . . . 1 5 . . Scanalyzers . | . . . . . . . . . . Garrison Access . | . . . . . . . . . . Data Cores Recovered . | . . . . . . . . . . Used . | . . . . . . . . . . Hacking Detections 9 | . . . . . 1 1 3 . 4 Full Trace Events 1 | . . . . . . . . . 1 Feedback Events 1 | . . . . . . . . . 1 Hackware Fried 1 | . . . . . . . . . 1 Feedback Blocked . | . . . . . . . . . . Robot Schematics Acquired . | . . . . . . . . . . Robots Built . | . . . . . . . . . . Authchips . | . . . . . . . . . . Time . | . . . . . . . . . . Total Robot Build Rating . | . . . . . . . . . . Part Schematics Acquired . | . . . . . . . . . . Parts Built . | . . . . . . . . . . Authchips . | . . . . . . . . . . Time . | . . . . . . . . . . Total Part Build Rating . | . . . . . . . . . . Part Studies Acquired 5 | . . . . . 5 . . . . Parts Repaired . | . . . . . . . . . . Time . | . . . . . . . . . . Parts Recycled . | . . . . . . . . . . Recycled Matter . | . . . . . . . . . . Retrieved Matter . | . . . . . . . . . . Retrieved Components . | . . . . . . . . . . Parts Scanalyzed . | . . . . . . . . . . Part Schematics Acquired . | . . . . . . . . . . Parts Damaged . | . . . . . . . . . . Bothacking | -11 -10 -10 -10 -9 -8 -8 -8 -8 -6 ------------ Run | Yrd Mat Min Exi Min Mat Sto Rec Scr Fac Used RIF Installer . | . . . . . . . . . . Robots Hacked . | . . . . . . . . . . Non-combat . | . . . . . . . . . . Combat . | . . . . . . . . . . Robot Hacks Applied . | . . . . . . . . . . Relay Couplers Released . | . . . . . . . . . . Fabnet Peak Effective % . | . . . . . . . . . . Robots Rewired . | . . . . . . . . . . Allies Hacked . | . . . . . . . . . . Hacks Repelled . | . . . . . . . . . . Allies | -11 -10 -10 -10 -9 -8 -8 -8 -8 -6 -------- Run | Yrd Mat Min Exi Min Mat Sto Rec Scr Fac Total Allies 3 | . . 3 . . . . . . . Largest Group 3 | . . 3 3 3 2 . . . . Highest-Rated Group 40 | . . 40 40 40 32 . . . . Highest-Rated Ally 16 | . . 16 16 16 16 . . . . Total Orders . | . . . . . . . . . . Ally Attacks 24 | . . . . 21 3 . . . . Total Damage 323 | . . . . 278 45 . . . . Kills 7 | . . . . 5 2 . . . . Allies Corrupted . | . . . . . . . . . . Allies Melted . | . . . . . . . . . . Intel | -11 -10 -10 -10 -9 -8 -8 -8 -8 -6 ------- Run | Yrd Mat Min Exi Min Mat Sto Rec Scr Fac Active Infowar (turns) 2419 | 185 908 233 . 487 399 . . . 207 Sensors 207 | . . . . . . . . . 207 Structural 589 | . . . . . 384 . . . 205 Traps 197 | . . . . . . . . . 197 Seismic 2207 | 185 908 233 . 487 394 . . . . Machine Analysis 202 | . . . . . . . . . 202 Robot Analysis Total . | . . . . . . . . . . Derelict Logs Recovered 2 | . . 1 . 1 . . . . . Drone Launches . | . . . . . . . . . . Drone Recoveries . | . . . . . . . . . . Exploration | -11 -10 -10 -10 -9 -8 -8 -8 -8 -6 ------------- Run | Yrd Mat Min Exi Min Mat Sto Rec Scr Fac Turns Passed 5883 | 282 930 863 409 504 647 696 1050 280 222 Spaces Moved 4725 | 178 653 646 373 351 431 371 982 244 496 Core 2 | 2 . . . . . . . . . Treads 3 | . . . . . . 3 . . . Legs . | . . . . . . . . . . Wheels 4231 | 176 653 646 373 351 431 368 982 244 7 Hover . | . . . . . . . . . . Flight 489 | . . . . . . . . . 489 Fastest Speed 26 | 50 80 95 105 90 75 95 95 115 26 Average Speed 93 | 79 82 104 105 115 85 117 103 115 31 Slowest Speed 275 | 80 95 110 105 130 130 240 115 115 275 Overloaded Moves . | . . . . . . . . . . Propulsion Burnouts . | . . . . . . . . . . Robots Hopped 3 | . . . . . . . . . 3 Potential Cave-ins . | . . . . . . . . . . Cave-ins Triggered 1 | . . . . 1 . . . . . Exploration Rate (%) 51 | 4 62 98 87 50 35 38 99 26 13 Regions Visited 9 Branch Regions 6 Pre-discovered Areas 6 | . . . . . . 1 5 . . Known Exits Taken 1 | . . . . . 1 . . . . Unknown Exits Taken 8 | 1 1 1 1 1 . 1 1 1 . Scrap Searched 3 | . . 1 . 2 . . . . . Spaces Dug 17 | . 11 . . . . . . . 6 Terrain Destroyed 24 | . 11 . . 2 2 3 . . 6 Melee 6 | . . . . . . . . . 6 Projectile 15 | . 11 . . 2 2 . . . . AOE 3 | . . . . . . 3 . . . Terrain Rammed . | . . . . . . . . . . Walls Destroyed . | . . . . . . . . . . Machines Disabled . | . . . . . . . . . . Actions | -11 -10 -10 -10 -9 -8 -8 -8 -8 -6 --------- Run | Yrd Mat Min Exi Min Mat Sto Rec Scr Fac Total 5649 | 260 909 762 390 405 609 512 1000 243 559 Wait 464 | 41 174 70 18 5 76 47 4 . 29 Move 4710 | 177 652 645 372 350 430 370 981 243 490 Hop 3 | . . . . . . . . . 3 Pick Up 39 | 5 3 5 . 7 11 2 3 . 3 Fast Attach 35 | 7 . 1 . 6 6 13 2 . . Attach 19 | . 1 1 . . 4 . . . 13 Detach 2 | . . . . . . . . . 2 Swap 32 | . 12 1 . 3 8 5 . . 3 Drop 47 | . 2 . . 10 13 9 3 . 10 Fire 282 | 30 65 39 . 24 55 62 7 . . Melee 10 | . . . . . . 4 . . 6 Ram 6 | . . . . . 6 . . . . Kick . | . . . . . . . . . . Crush . | . . . . . . . . . . Escape Stasis . | . . . . . . . . . . Rewire . | . . . . . . . . . . Trap . | . . . . . . . . . . Miscellaneous . | . . . . . . . . . . Route ------- -11/Scrapyard -10/Materials (discovered 3 exits: [*Mat x2] / [*Min]) -10/Mines (discovered 4 exits: [*Mat x2] / [*Exi] / [*Sub]) -10/Exiles -9/Mines (discovered 2 exits: *Mat x2) -8/Materials -8/Storage -8/Recycling (discovered 2 exits: *Fac / [*Scr]) -8/Scraptown -6/Factory History --------- Turn | Location | Event 14 | -11/Scrapyard | Discovered new exit (range 16) 283 | -11/Scrapyard | Entered Materials 303 | -10/Materials | Build established: Mutant 538 | -10/Materials | Discovered new exit (range 14) 740 | -10/Materials | Discovered new exit (range 16) 888 | -10/Materials | Discovered new exit (range 10) 1213 | -10/Materials | Entered Mines 1220 | -10/Mines | Met a Derelict bent on vengeance 1387 | -10/Mines | Discovered new exit (range 5) 1447 | -10/Mines | Assisted by bots powering up and referring to "LRC-V3" 1686 | -10/Mines | Discovered new exit (range 11) 1699 | -10/Mines | Received a Rocket Launcher from a helpful Derelict 1764 | -10/Mines | Core integrity fell below 50% 1941 | -10/Mines | Learned Materials emergency access door positions 1962 | -10/Mines | Discovered new exit (range 13) 2058 | -10/Mines | Deemed a non-threat by the Exiles lab entrance 2059 | -10/Mines | Discovered new exit (range 5) 2076 | -10/Mines | Entered Exiles 2076 | -10/Exiles | Accompanied by 3 allies 2102 | -10/Exiles | Met 8R-AWN 2120 | -10/Exiles | Met EX-HEX 2162 | -10/Exiles | Met EX-DEC 2206 | -10/Exiles | Visited The Gauntlet 2346 | -10/Exiles | Met EX-BIN 2459 | -10/Exiles | Discovered new exit (range 10) 2485 | -10/Exiles | Entered Mines 2485 | -9/Mines | Accompanied by 3 allies 2611 | -9/Mines | A weapon hastily lodged in a ceiling crevice suddenly fell to the ground 2617 | -9/Mines | Assembled infested the area 2622 | -9/Mines | Assisted by a Guerilla fighting off Assembled 2661 | -9/Mines | Crushed by falling debris 2711 | -9/Mines | Discovered new exit (range 6) 2879 | -9/Mines | Discovered new exit (range 4) 2989 | -9/Mines | Entered Materials 2989 | -8/Materials | Accompanied by 2 allies 2989 | -8/Materials | Evolved 4 slots: Propulsion x2, Utility x2 2990 | -8/Materials | Identified exit to Storage 3636 | -8/Materials | Entered Storage 3664 | -8/Storage | Lost 4 parts (1n2u1w) 4098 | -8/Storage | Lost 4 parts (1n2u1w) 4167 | -8/Storage | Build established: Scavenger-Mutant 4328 | -8/Storage | Used back door to open Recycling access 4328 | -8/Storage | Discovered new exit (range 5) 4332 | -8/Storage | Entered Recycling 4512 | -8/Recycling | Discovered new exit (range 16) 4670 | -8/Recycling | Scanned before Scraplab entrance 5369 | -8/Recycling | Entered Scraplab 5378 | -8/Recycling | Discovered new exit (range 3) 5382 | -8/Recycling | Entered Scraptown 5382 | -8/Scraptown | System corruption cleaned by C-Scrubber 5424 | -8/Scraptown | Visited TADAMA 5449 | -8/Scraptown | Visited Fellowship of the Rings 5485 | -8/Scraptown | Visited Awakened 5493 | -8/Scraptown | Visited Assassins FH 5500 | -8/Scraptown | Visited Junk Repository 5539 | -8/Scraptown | Visited Red Mages 5578 | -8/Scraptown | Visited Cyclists 5646 | -8/Scraptown | Discovered new exit (range 11) 5662 | -8/Scraptown | Entered Factory 5662 | -6/Factory | Evolved 4 slots: Utility x4 5816 | -6/Factory | Hacking Suite fried by hacking feedback 5884 | -6/Factory | Self-destructed Last Messages --------------- >>Network(Status) Querying network status... 6 records found: (181,115) - Loaded: Nova Cannon (98,161) - Building: Adv. Medium Treads (90,195) - Loaded: L-41 Fighter (29,137) - Idle (86,18) - Loaded: Adv. Heavy Treads (3,13) - Loaded: Disruptor Cannon 05842_ Connecting with Terminal... 05853_ Acquired Adv. Visual Processing Unit. 05856_ U-05 Engineer works on Matter Pump. 05859_ >> Machine Analyzer network decryption results: 05859_ Fusion Modulator x4 05859_ Matter Pump x7 05859_ Terminal x2 05861_ Cesium-ion Thruster+ destroyed. 05864_ Hacking Suite destroyed. 05873_ >> Machine Analyzer network decryption results: 05873_ Neutrino Reactor x4 Map ----- +----------------------------------------------------+ | ????????????????????????????????????????????????? | | ?????????????????????????????????????????????????# | | ?????????????????????????????????????????????????# | | ??????????????????????????????"????"""?? ######### | | ??????????????????????????????"????"""?? ######### | | ??????????????????????????????"????"""?? # | | ??????????????????????????????T????????? # | | ??????????????????????????????"????"""?? # | | ??????????????????????????????"????"""?? # | | ??????????????????????????????"????"""?? # | | ???????????????????????????????????????? # | | ???????????????????????????????"""?"""?? # | | ???????????????????????????????"""?"""?? # | | ???????????????????????????????"""?"""?? # | | ??????????????????????###?#### #! | | ??????????????????????###?##########+##### | | ?????????????????????? ? # # | | ??????????????????????? ?? # ###+##### | | ?????????????????""" """ """ # | | ?????????????????""" """ """ # | | ?????????????????""" """ """ !# | | ??????????????????? # | | ?????????????????""" """ """ ! # | | ??????????????## """ """ """ # ###### | | ??????????????## """ """ """ # ###### | | ?????????????? + @ p ## ###??## | | ??????????????##############Y#### ###??## | | ????????????????######## ##???## | | ??????????????????????## k ##???## | | ??????????????????????## ###??## | | ??????????????????????## T##??## | | ??????????????????????## ##??## | | ??????????????????????## ###??##### | | ???????????????????? ###??##### | | ???????????????????? ######+##############???????? | | ???????????????????? # ########???????? | | ?????????????????????????% ??????????????????????? | | ???????????????????????? ??????????????????????? | | ??????????????????????? ???????????????????????? | | ?????????????????????? ???????????????????????? | | ??????????????????????? ????????????????????????? | | ?????????????????????????????????????????????????? | | ?????????????????????????????????????????????????? | | ?????????????????????????????????????????????????? | | ?????????????????????????????????????????????????? | | ?????????????????????????????????????????????????? | | ?????????????????????????????????????????????????? | | ?????????????????????????????????????????????????? | | ?????????????????????????????????????????????????? | | ?????????????????????????????????????????????????? | +----------------------------------------------------+ Best States ------------- Heat Dissipation 37 Energy Generation 18 Energy Capacity 300 Matter Stores 300 Matter Capacity 300 Sight Range 16 Robot Scan Range 16 Terrain Scan Density 10 Armor Coverage 750 Evasion (%) 64 Recoil Reduction 1 Offensive Hacking 20 Defensive Hacking 10 Authchip Count 1 Item Schematics ----------------- None Robot Schematics ------------------ None Fabricated ------------ Nothing Repaired ---------- Nothing Studied --------- Cesium-ion Thruster | -8/Materials | Hacked Wheel | -8/Materials | Hacked Com. Wheel | -8/Materials | Hacked Lgt. Cannon | -8/Materials | Hacked Nuclear Core | -8/Materials | Hacked Alien Tech Used ----------------- None Achievements -------------- None Challenges ------------ None Game ------ Seed CarbideInsulationRailgun Manual? 0 Play Time 00:43:20 Cumulative 103.1 hours Start 2026.03.01 @ 23:35:03 End 2026.03.02 @ 00:16:06 Sessions 1 Manual Loads 0 Difficulty Rogue Special Mode None Game No. 212 Rogue 212 Adventurer 0 Explorer 0 Win Type - Total 2 Types 1/0/0/1/0/0/0/0/0/0 Lore% 53 Gallery% 40 Achievement% 40 Wizard Run 0 Options --------- Layout 0 ASCII 0 Keyboard 1 Movement Arrows Keybinds 0 Fullscreen 1 Font 18/Smallcaps Map View 76x50 Zoom Use 49% Tactical HUD 1 Map Filters NONE Filters NONE Steam 1 RUN: 94cc8110-68ee-4074-b7f9-1e9cb344fcd2